bitfinex-derivatives/quotes_SOLF0:USTF0_20251129
["timestamp","ask_amount","ask_price","bid_price","bid_amount"]
[1764397805222,6.63700345,136.71,136.69,0.05266291]
[1764397810828,0.05350345,136.71,136.69,3.22266291]
[1764397811429,25.1,136.75,136.7,3.17]
[1764397811633,5.08331218,136.8,136.72,3.17]
[1764397811934,31.6805,136.77,136.72,3.17]
[1764397812236,33.65523804,136.77,136.7,3.17]
[1764397812627,0.047746,136.75,136.72,0.05444127]
[1764397813132,6.582,136.74,136.72,0.05444127]
[1764397813333,25.1,136.73,136.72,0.05444127]
[1764397817133,25.1,136.73,136.72,3.22444127]
[1764397817332,0.047746,136.75,136.72,3.22444127]
[1764397817333,25.147746,136.75,136.72,3.22444127]
[1764397817931,0.047746,136.75,136.72,3.22444127]
[1764397818234,0.047746,136.75,136.73,3.17]
[1764397819923,6.5795,136.79,136.74,5.24473804]
[1764397820128,6.5795,136.79,136.75,3.27]
[1764397821039,0.05064397,136.78,136.76,3.31910291]
[1764397824641,0.05064397,136.78,136.76,4.58351113]
[1764397824831,0.05064397,136.78,136.76,3.31910291]
[1764397825839,0.05064397,136.78,136.76,4.58351113]
[1764397826138,0.05064397,136.78,136.77,3.27]
[1764397828837,6.5803,136.77,136.76,0.04910291]
[1764397829037,32.92470822,136.77,136.76,0.04910291]
[1764397830738,31.6603,136.77,136.76,0.04910291]
[1764397831241,25.08,136.77,136.76,3.31910291]
[1764397831745,25.08,136.77,136.76,0.04910291]
[1764397832632,7.89515219,136.78,136.76,0.04910291]
[1764397832837,25.08,136.77,136.76,0.04910291]
[1764397833652,25.08,136.77,136.76,3.34910291]
[1764397833938,25.08,136.77,136.76,0.04910291]
[1764397835347,127.4437,136.77,136.71,3.3]
[1764397835549,1.26440822,136.75,136.71,3.3]
[1764397836138,127.4437,136.77,136.71,3.3]
[1764397836338,0.0542438,136.75,136.73,3.35327972]
[1764397836540,0.0542438,136.75,136.73,3.34876112]
[1764397836939,0.0542438,136.75,136.73,4.61316934]
[1764397837144,0.0542438,136.75,136.74,3.3]
[1764397837446,0.0542438,136.75,136.73,3.34876112]
[1764397844759,0.0542438,136.75,136.74,3.3]
[1764397849157,6.5796,136.79,136.74,3.3]
[1764397849360,6.5796,136.79,136.76,3.3]
[1764397849858,6.5796,136.79,136.77,3.3]
[1764397850262,6.63096643,136.79,136.77,3.34614175]
[1764397853060,0.05136643,136.79,136.77,3.34614175]
[1764397854662,11.72000838,136.79,136.77,3.34614175]
[1764397856166,5.14050838,136.79,136.77,3.34614175]
[1764397856365,0.05136643,136.79,136.77,3.34614175]
[1764397856563,5.14050838,136.79,136.77,3.34614175]
[1764397856767,0.05136643,136.79,136.77,3.34614175]
[1764397857065,5.14050838,136.79,136.77,3.34614175]
[1764397857266,0.05136643,136.79,136.77,3.34614175]
[1764397857466,5.14050838,136.79,136.77,3.34614175]
[1764397857666,0.05136643,136.79,136.77,3.34614175]
[1764397857965,5.14050838,136.79,136.77,3.34614175]
[1764397858163,0.05136643,136.79,136.78,3.3]
[1764397861659,0.05136643,136.79,136.77,0.04614175]
[1764397861864,1.31577465,136.79,136.77,0.04614175]
[1764397862269,25.08,136.78,136.77,0.04614175]
[1764397864669,6.63096643,136.79,136.77,3.09614175]
[1764397867878,7.89537465,136.79,136.77,0.04614175]
[1764397868378,0.05136643,136.79,136.78,4.31440822]
[1764397868783,0.05136643,136.79,136.78,3.05]
[1764397885982,6.63066643,136.79,136.77,3.03614175]
[1764397893398,6.63066643,136.79,136.77,0.04614175]
[1764397895700,6.63066643,136.79,136.77,3.18614175]
[1764397897501,6.63066643,136.79,136.77,0.04614175]
[1764397897694,6.5822,136.74,136.72,3.14]
[1764397897894,31.6622,136.74,136.72,3.14]
[1764397898800,31.7155803,136.74,136.72,3.19302736]
[1764397909923,31.7155803,136.74,136.72,0.05302736]
[1764397910129,108.989,136.71,136.67,3.14]
[1764397910323,25.08,136.7,136.67,3.14]
[1764397910625,110.98047441,136.69,136.58,9.06756805]
[1764397910812,102.4205,136.69,136.6,3.14]
[1764397911014,102.49241138,136.67,136.65,0.05214023]
[1764397911317,25.08,136.66,136.65,0.05214023]
[1764397916022,25.08,136.66,136.65,3.19214023]
[1764397916416,25.08,136.66,136.65,0.05214023]
[1764397917220,25.08,136.66,136.65,3.19214023]
[1764397918026,0.05401138,136.67,136.65,3.19214023]
[1764397918230,0.05401138,136.67,136.66,3.14]
[1764397918532,6.5828,136.72,136.66,3.14]
[1764397918719,6.5828,136.72,136.68,3.14]
[1764397918924,25.1,136.73,136.68,3.14]
[1764397919725,0.05509371,136.72,136.7,3.14]
[1764397920921,0.05509371,136.72,136.69,3.19473786]
[1764397922821,0.05509371,136.72,136.69,5.17041227]
[1764397923231,0.05509371,136.72,136.69,3.19473786]
[1764397926031,6.63789371,136.72,136.69,3.19473786]
[1764397931834,0.05509371,136.72,136.69,3.19473786]
[1764397945041,5.48524887,136.74,136.7,3.3]
[1764397945941,0.0493041,136.73,136.7,3.3]
[1764397947043,6.6316041,136.73,136.7,3.3]
[1764397956143,11.85129885,136.73,136.7,3.3]
[1764397957236,6.6316041,136.73,136.7,3.3]
[1764397957435,11.85129885,136.73,136.7,3.3]
[1764397957735,6.6316041,136.73,136.7,3.3]
[1764397957941,11.85129885,136.73,136.7,3.3]
[1764397958240,5.21969475,136.72,136.7,3.3]
[1764397959151,6.6316041,136.73,136.7,3.3]
[1764397959353,5.22735776,136.72,136.7,3.3]
[1764397959548,6.6316041,136.73,136.7,3.3]
[1764397959744,5.227587,136.72,136.7,3.3]
[1764397960046,5.20675134,136.72,136.7,3.3]
[1764397960243,5.20675134,136.71,136.7,3.3]
[1764397960442,5.20675134,136.72,136.7,3.3]
[1764397960648,5.20675134,136.71,136.7,3.3]
[1764397960842,5.20675134,136.72,136.7,3.3]
[1764397961038,5.20675134,136.71,136.7,3.3]
[1764397966455,0.0493041,136.73,136.7,3.3]
[1764397966654,0.0493041,136.73,136.72,4.32572074]
[1764397970849,0.0493041,136.73,136.72,3.06]
[1764397973861,6.5799,136.78,136.72,3.06]
[1764397974057,6.5799,136.78,136.74,4.32572074]
[1764397974254,6.5799,136.78,136.75,3.06]
[1764397974962,6.5805,136.77,136.75,3.10759274]
[1764397975460,6.5805,136.77,136.75,0.04759274]
[1764397982372,6.5805,136.77,136.75,3.22759274]
[1764397983173,6.5805,136.77,136.75,0.04759274]
[1764397983361,0.0535467,136.78,136.75,3.22759274]
[1764397988073,6.6333467,136.78,136.75,0.04759274]
[1764397988279,7.89906744,136.78,136.75,0.04759274]
[1764397988579,7.89906744,136.78,136.75,3.22759274]
[1764397988976,6.6333467,136.78,136.75,3.22759274]
[1764397989176,0.0535467,136.78,136.75,4.49331348]
[1764397989376,0.0535467,136.78,136.76,3.18]
[1764397990779,0.0535467,136.78,136.77,4.44572074]
[1764398001987,0.0535467,136.78,136.77,3.18]
[1764398010398,6.5771,136.84,136.77,3.18]
[1764398011398,0.05318595,136.82,136.79,3.33415926]
[1764398011995,0.05318595,136.82,136.72,25.06]
[1764398012196,1.97524054,136.73,136.7,9.13527842]
[1764398012398,1.97524054,136.71,136.64,3.28]
[1764398012601,1.97524054,136.69,136.64,3.28]
[1764398012805,1.97524054,136.69,136.62,3.11]
[1764398013000,1.97524054,136.69,136.63,6.58654093]
[1764398013304,0.04612444,136.67,136.65,3.164106]
[1764398013700,5.49589217,136.67,136.65,0.054106]
[1764398013997,102.48222444,136.67,136.65,0.054106]
[1764398014195,107.93199217,136.67,136.65,0.054106]
[1764398015106,5.49589217,136.67,136.65,3.164106]
[1764398015413,0.04612444,136.67,136.65,0.054106]
[1764398017802,0.04612444,136.67,136.65,3.164106]
[1764398019907,6.5829,136.72,136.65,3.164106]
[1764398020912,0.05457935,136.7,136.65,3.164106]
[1764398024625,0.05457935,136.7,136.67,3.11]
[1764398024913,104.34524054,136.76,136.69,3.11]
[1764398024914,6.5815,136.75,136.69,3.11]
[1764398025922,0.05331616,136.73,136.72,3.11]
[1764398026216,6.63591616,136.73,136.71,0.04723528]
[1764398026415,6.63591616,136.73,136.71,3.15723528]
[1764398026622,0.05331616,136.73,136.71,3.15723528]
[1764398028423,0.05331616,136.73,136.71,5.13247582]
[1764398028720,0.05331616,136.73,136.72,3.11]
[1764398031323,6.63551616,136.73,136.71,3.15723528]
[1764398031524,0.05331616,136.73,136.71,3.15723528]
[1764398031728,0.05331616,136.73,136.72,3.11]
[1764398036035,6.63561616,136.73,136.71,0.04723528]
[1764398036330,6.63561616,136.73,136.71,3.15723528]
[1764398038135,0.05331616,136.73,136.71,3.15723528]
[1764398052345,6.63571616,136.73,136.71,3.15723528]
[1764398060857,6.5844,136.69,136.63,12.56911712]
[1764398061156,102.4544,136.65,136.63,4.093e-05]
[1764398061455,25.06,136.64,136.63,4.093e-05]
[1764398061662,30.46343985,136.64,136.63,4.093e-05]
[1764398062246,31.92343985,136.64,136.63,4.093e-05]
[1764398062560,33.89868039,136.64,136.63,4.093e-05]
[1764398062858,132.92753985,136.64,136.56,3.2]
[1764398063046,7.37868039,136.63,136.56,3.2]
[1764398063249,102.4779,136.62,136.54,3.2]
[1764398063448,107.88133985,136.62,136.54,3.2]
[1764398063652,0.04692469,136.59,136.58,3.2]
[1764398065059,25.08,136.61,136.58,3.2]
[1764398065253,25.08,136.63,136.58,3.2]
[1764398065651,102.4385,136.67,136.6,3.2]
[1764398065853,127.5185,136.67,136.6,3.2]
[1764398066050,127.5185,136.67,136.63,3.2]
[1764398066051,0.04928742,136.65,136.63,3.2]
[1764398066360,0.05026215,136.65,136.63,3.25596723]
[1764398067163,3.95048108,136.64,136.5,7.619e-05]
[1764398067357,102.5587,136.51,136.46,3.2]
[1764398067561,27.13524054,136.5,136.43,3.2]
[1764398067755,127.7272,136.5,136.43,3.2]
[1764398068362,27.13524054,136.5,136.43,3.2]
[1764398068558,0.0510813,136.48,136.45,0.05529559]
[1764398068963,0.0510813,136.48,136.45,3.25529559]
[1764398069766,25.18,136.54,136.46,3.2]
[1764398070654,102.5418,136.53,136.46,3.2]
[1764398070852,0.05410525,136.51,136.49,0.05537195]
[1764398071266,102.4909,136.6,136.49,3.25537195]
[1764398071455,102.4909,136.6,136.49,3.2]
[1764398071456,130.80259888,136.59,136.49,3.2]
[1764398071657,102.5063,136.58,136.49,3.2]
[1764398071854,102.5343,136.54,136.49,3.2]
[1764398072060,127.8143,136.54,136.49,3.2]
[1764398072378,105.54449888,136.56,136.42,3.02349888]
[1764398072379,0.05341666,136.53,136.51,3.29]
[1764398072662,0.0503292,136.53,136.51,3.33933944]
[1764398076152,109.0806,136.6,136.51,3.33933944]
[1764398076153,134.3606,136.6,136.51,3.33933944]
[1764398076357,134.3606,136.6,136.51,3.29]
[1764398077063,0.05389641,136.57,136.54,0.0483139]
[1764398077263,0.05389641,136.57,136.54,3.3383139]
[1764398078462,0.05389641,136.57,136.42,3.29]
[1764398078655,102.5974,136.46,136.35,3.29]
[1764398078860,11.3,136.45,136.35,3.29]
[1764398079060,113.9049,136.45,136.35,3.29]
[1764398079262,102.611,136.44,136.35,3.29]
[1764398079466,11.3,136.45,136.36,3.29]
[1764398079669,113.9043,136.45,136.36,3.29]
[1764398079854,0.05605436,136.41,136.38,3.33643262]
[1764398080559,102.6141,136.44,136.38,3.33643262]
[1764398080560,109.1931,136.46,136.38,3.33643262]
[1764398080870,102.5856,136.47,136.38,3.33643262]
[1764398081171,102.5699,136.5,136.43,3.29]
[1764398081567,102.62841754,136.48,136.45,3.34190496]
[1764398081755,102.62841754,136.48,136.45,0.05190496]
[1764398081959,102.5931,136.46,136.45,0.05190496]
[1764398082361,102.5931,136.46,136.4,3.29]
[1764398082561,102.5699,136.5,136.44,3.29]
[1764398082961,102.5751,136.49,136.44,3.29]
[1764398083369,0.04706626,136.48,136.45,0.05025598]
[1764398083670,0.04706626,136.48,136.45,3.34025598]
[1764398085971,102.5618,136.51,136.45,3.34025598]
[1764398086169,25.44,136.52,136.41,102.6278]
[1764398086362,102.6262,136.42,136.28,106.0129]
[1764398086563,105.67309888,136.39,136.28,3.29]
[1764398086763,105.67309888,136.39,136.27,3.52198438]
[1764398086764,3.02349888,136.36,136.27,3.52198438]
[1764398086965,102.6883,136.34,136.27,3.52198438]
[1764398087261,3.02349888,136.34,136.27,3.52198438]
[1764398087567,3.02349888,136.34,136.29,0.04704645]
[1764398087568,0.04943338,136.32,136.29,0.04704645]
[1764398088164,0.04943338,136.32,136.29,3.33704645]
[1764398088371,0.04943338,136.32,136.29,0.04704645]
[1764398088568,0.04943338,136.32,136.29,3.33704645]
[1764398088766,102.6527,136.39,136.29,3.33704645]
[1764398088971,5.4798836,136.4,136.3,3.29]
[1764398089173,102.6417,136.4,136.3,3.29]
[1764398089370,105.67699888,136.38,136.3,3.29]
[1764398089562,102.6535,136.38,136.3,3.29]
[1764398089763,102.6535,136.38,136.33,0.05115093]
[1764398090066,0.05621074,136.35,136.33,0.05115093]
[1764398090262,0.04710365,136.35,136.33,3.34115093]
[1764398090467,25.58,136.41,136.33,3.34115093]
[1764398091465,0.05243366,136.38,136.33,3.34115093]
[1764398093365,0.05243366,136.38,136.35,3.29]
[1764398093561,102.589,136.47,136.35,3.29]
[1764398093773,5.33065404,136.47,136.35,3.29]
[1764398093968,5.33065404,136.47,136.37,3.29]
[1764398094174,128.2036,136.48,136.37,3.29]
[1764398094175,128.2036,136.48,136.38,3.29]
[1764398094475,25.62,136.48,136.38,3.29]
[1764398094773,0.05574795,136.44,136.42,3.33918774]
[1764398095873,0.05574795,136.44,136.42,0.04918774]
[1764398097577,0.05574795,136.44,136.42,3.33918774]
[1764398097972,25.62,136.48,136.42,3.33918774]
[1764398098172,5.34231703,136.52,136.43,3.29]
[1764398098373,25.62,136.54,136.43,3.29]
[1764398099077,0.0475423,136.5,136.47,3.34288604]
[1764398099786,0.0475423,136.5,136.47,0.05288604]
[1764398100686,0.0475423,136.5,136.47,3.34288604]
[1764398100887,0.0475423,136.5,136.47,0.05288604]
[1764398103878,0.0475423,136.5,136.47,3.09288604]
[1764398110784,0.0475423,136.5,136.47,0.05288604]
[1764398111088,5.39714577,136.49,136.47,0.05288604]
[1764398111288,0.0475423,136.5,136.47,0.05288604]
[1764398111587,5.40533321,136.49,136.47,0.05288604]
[1764398111778,5.40533321,136.48,136.47,0.05288604]
[1764398114089,5.40533321,136.48,136.39,3.24]
[1764398114389,5.40533321,136.47,136.39,3.24]
[1764398114585,13.31512822,136.5,136.41,3.24]
[1764398114895,5.40688155,136.49,136.41,3.24]
[1764398115081,0.05576871,136.46,136.44,0.05628483]
[1764398117887,5.46485978,136.46,136.44,0.05628483]
[1764398118288,0.05576871,136.46,136.44,0.05628483]
[1764398118888,2.95572178,136.47,136.45,3.24]
[1764398119093,102.5556,136.51,136.45,3.24]
[1764398119482,6.5932,136.51,136.45,3.24]
[1764398119994,0.04851862,136.49,136.47,0.04868438]
[1764398122391,104.08051862,136.49,136.47,0.04868438]
[1764398123092,6.5947,136.48,136.39,3.24]
[1764398124192,0.05230355,136.45,136.42,0.05039546]
[1764398127094,0.05230355,136.45,136.42,3.22039546]
[1764398133392,5.34744978,136.5,136.42,3.22039546]
[1764398133594,107.90295823,136.53,136.43,3.28]
[1764398134096,6.5926,136.52,136.43,9.8764]
[1764398134298,0.04489945,136.49,136.46,0.04705394]
[1764398134501,0.04489945,136.49,136.46,3.32705394]
[1764398146904,6.5916,136.54,136.46,3.32705394]
[1764398147106,5.37556922,136.53,136.47,3.28]
[1764398147321,6.5916,136.54,136.47,3.28]
[1764398148010,6.5916,136.54,136.5,3.28]
[1764398150111,6.5905,136.56,136.5,3.28]
[1764398150308,6.5905,136.56,136.53,3.28]
[1764398150512,6.5905,136.56,136.52,3.33282037]
[1764398151117,6.5896,136.58,136.52,3.33282037]
[1764398152210,6.5902,136.57,136.52,3.33282037]
[1764398154122,11.6930426,136.59,136.52,3.33282037]
[1764398154310,114.33590888,136.6,136.52,3.33282037]
[1764398154626,102.4965,136.59,136.52,3.33282037]
[1764398154927,107.6005426,136.59,136.52,3.33282037]
[1764398155317,6.5897,136.58,136.52,3.33282037]
[1764398156421,102.5109,136.57,136.52,0.05282037]
[1764398156623,107.6022162,136.57,136.52,0.05282037]
[1764398157119,102.5268,136.55,136.52,0.05282037]
[1764398158421,6.5917,136.54,136.52,0.05282037]
[1764398170339,11.76792813,136.54,136.52,0.05282037]
[1764398171229,5.17622813,136.55,136.52,3.04282037]
[1764398171424,5.17622813,136.55,136.52,0.05282037]
[1764398171731,5.17622813,136.56,136.52,0.05282037]
[1764398171922,5.17622813,136.55,136.52,0.05282037]
[1764398172120,5.17622813,136.56,136.52,0.05282037]
[1764398172319,6.5916,136.54,136.52,3.04282037]
[1764398172533,5.18808677,136.56,136.52,3.04282037]
[1764398172724,5.18808677,136.57,136.52,3.04282037]
[1764398172929,5.18808677,136.59,136.52,3.04282037]
[1764398173131,5.18808677,136.58,136.55,2.99]
[1764398173342,5.18808677,136.59,136.55,2.99]
[1764398173637,5.18808677,136.58,136.55,2.99]
[1764398173832,5.18808677,136.6,136.55,2.99]
[1764398174029,5.18808677,136.61,136.55,2.99]
[1764398174227,5.18808677,136.62,136.57,2.99]
[1764398174426,5.18808677,136.61,136.57,2.99]
[1764398174625,5.18808677,136.63,136.59,2.99]
[1764398174827,5.18808677,136.62,136.6,0.04736905]
[1764398175126,5.18808677,136.61,136.6,0.04736905]
[1764398175327,5.18808677,136.62,136.6,0.04736905]
[1764398175937,5.18808677,136.62,136.6,3.03736905]
[1764398177534,5.18808677,136.63,136.6,3.03736905]
[1764398179036,25.38,136.64,136.6,3.03736905]
[1764398179037,5.18808677,136.64,136.6,3.03736905]
[1764398179237,5.18808677,136.65,136.6,3.03736905]
[1764398179536,5.18808677,136.66,136.6,3.03736905]
[1764398179737,139.61223741,136.68,136.6,3.03736905]
[1764398180136,132.86300037,136.68,136.6,3.03736905]
[1764398180337,6.5854,136.67,136.6,3.03736905]
[1764398182327,6.5859,136.66,136.6,3.03736905]
[1764398184629,6.5864,136.65,136.6,3.03736905]
[1764398185537,6.587,136.64,136.6,0.04736905]
[1764398185738,102.4599,136.64,136.6,0.04736905]
[1764398186836,6.5879,136.62,136.6,3.12736905]
[1764398187137,102.4505,136.65,136.6,3.12736905]
[1764398187542,6.5856,136.66,136.6,3.12736905]
[1764398188635,6.5856,136.66,136.63,3.08]
[1764398188828,6.5856,136.66,136.63,3.13466803]
[1764398189634,6.5856,136.66,136.63,0.05466803]
[1764398193740,102.428,136.68,136.63,0.05466803]
[1764398193942,102.4147,136.7,136.63,0.05466803]
[1764398194644,6.5848,136.68,136.63,0.05466803]
[1764398194942,6.5848,136.68,136.63,3.26466803]
[1764398195545,6.5839,136.7,136.63,3.26466803]
[1764398198043,102.4129,136.71,136.63,0.05466803]
[1764398198044,105.43920209,136.69,136.63,0.05466803]
[1764398198244,102.439,136.67,136.63,0.05466803]
[1764398198438,102.4437,136.66,136.63,0.05466803]
[1764398198649,6.5871,136.63,136.58,3.21]
[1764398199540,25.32,136.68,136.58,3.21]
[1764398199541,8.84512807,136.73,136.62,102.4711]
[1764398199741,102.406,136.71,136.63,3.21]
[1764398199957,0.05121371,136.66,136.64,0.05523893]
[1764398200147,0.0482567,136.66,136.64,0.05523893]
[1764398200650,0.0482567,136.66,136.64,3.26523893]
[1764398202452,0.0482567,136.66,136.64,0.05523893]
[1764398203546,0.0482567,136.66,136.64,3.26523893]
[1764398209762,6.582,136.74,136.66,3.21]
[1764398210146,102.395,136.73,136.66,3.21]
[1764398210351,102.395,136.73,136.63,3.21]
[1764398210555,127.775,136.73,136.63,3.21]
[1764398210757,127.775,136.73,136.67,0.04951288]
[1764398210959,6.5833,136.71,136.67,0.04951288]
[1764398219761,6.5833,136.71,136.67,3.25951288]
[1764398221669,31.9622,136.73,136.67,3.25951288]
[1764398221965,31.9622,136.73,136.67,4.52565283]
[1764398222764,31.9622,136.73,136.68,3.3]
[1764398224862,25.38,136.73,136.68,3.3]
[1764398225172,31.9214,136.75,136.7,3.3]
[1764398225361,31.9214,136.75,136.71,0.04923995]
[1764398226469,31.9214,136.75,136.71,3.34923995]
[1764398229376,31.9214,136.75,136.71,0.04923995]
[1764398230167,127.7159,136.75,136.71,0.04923995]
[1764398230368,103.65003995,136.74,136.71,0.04923995]
[1764398231366,6.5824,136.73,136.71,0.04923995]
[1764398231767,102.3681,136.76,136.71,0.04923995]
[1764398231972,25.32,136.75,136.71,3.34923995]
[1764398232574,31.9014,136.75,136.71,3.34923995]
[1764398233176,25.32,136.75,136.71,4.6153799]
[1764398233568,25.32,136.75,136.72,3.3]
[1764398233770,25.3,136.78,136.72,4.56613995]
[1764398234483,31.8801,136.78,136.72,4.56613995]
[1764398235385,25.3,136.78,136.73,3.3]
[1764398235585,25.3,136.78,136.69,102.4171]
[1764398235586,25.3,136.78,136.75,3.3]
[1764398236577,1.26613995,136.81,136.75,3.3]
[1764398236782,1.26613995,136.81,136.76,4.56613995]
[1764398236989,31.878,136.82,136.77,0.05143757]
[1764398238087,6.5786,136.81,136.77,0.05143757]
[1764398239274,25.3,136.82,136.77,4.61757752]
[1764398240388,31.8781,136.82,136.77,4.61757752]
[1764398241478,31.8781,136.82,136.78,3.3]
[1764398242988,6.5769,136.85,136.81,4.38613995]
[1764398243190,6.5769,136.85,136.82,0.05508311]
[1764398246885,6.5769,136.85,136.82,3.17508311]
[1764398249691,6.5757,136.87,136.84,3.12]
[1764398250997,6.5763,136.86,136.82,4.44122306]
[1764398251895,6.5763,136.86,136.82,1.32122306]
[1764398252093,103.56253995,136.86,136.82,0.05508311]
[1764398252702,6.5771,136.84,136.82,0.05508311]
[1764398254998,26.54613995,136.88,136.83,3.21]
[1764398255401,25.28,136.88,136.83,3.21]
[1764398256396,6.5756,136.87,136.83,3.21]
[1764398256598,25.28,136.88,136.85,3.21]
[1764398256798,25.28,136.88,136.85,3.25713523]
[1764398257303,25.24,136.91,136.85,3.25713523]
[1764398259194,6.5723,136.94,136.89,3.21]
[1764398259397,6.5723,136.94,136.9,3.25821463]
[1764398260801,6.5723,136.94,136.9,0.04821463]
[1764398261001,6.5723,136.94,136.9,3.25821463]
[1764398261596,6.5723,136.94,136.9,0.04821463]
[1764398264200,6.5729,136.93,136.9,0.04821463]
[1764398265206,6.5733,136.92,136.9,0.04821463]
[1764398268801,6.5733,136.92,136.84,3.21]
[1764398268802,6.5741,136.9,136.84,3.21]
[1764398269814,0.04684717,136.88,136.86,0.05055043]
[1764398271513,6.62234717,136.88,136.86,0.05055043]
[1764398276816,0.04684717,136.88,136.86,0.05055043]
[1764398278017,0.04684717,136.88,136.86,3.26055043]
[1764398279011,0.04684717,136.88,136.86,0.05055043]
[1764398280317,0.04684717,136.88,136.86,3.26055043]
[1764398281318,0.04684717,136.88,136.86,0.05055043]
[1764398283728,0.04684717,136.88,136.86,3.18055043]
[1764398288532,0.04684717,136.88,136.87,3.13]
[1764398288734,6.5738,136.91,136.87,3.13]
[1764398290225,31.7528,136.93,136.87,3.13]
[1764398290721,25.18,136.93,136.87,3.13]
[1764398291638,31.753,136.93,136.87,3.13]
[1764398292034,31.753,136.93,136.89,3.13]
[1764398292237,31.753,136.93,136.9,3.18323549]
[1764398292537,25.18,136.93,136.9,3.18323549]
[1764398295236,6.5714,136.96,136.9,3.18323549]
[1764398295834,6.5714,136.96,136.91,3.13]
[1764398296138,30.15083198,136.97,136.91,3.13]
[1764398296338,25.18,136.97,136.91,3.13]
[1764398297041,25.18,136.97,136.93,3.13]
[1764398297241,25.18,136.97,136.94,0.04942303]
[1764398297737,25.18,136.97,136.94,3.17942303]
[1764398311954,25.18,136.97,136.94,0.04942303]
[1764398313060,6.5714,136.96,136.94,0.04942303]
[1764398319966,7.83276679,136.96,136.94,0.04942303]
[1764398320959,1.26136679,136.96,136.91,1.26136679]
[1764398321163,6.5718,136.95,136.89,1.26136679]
[1764398322071,0.05550084,136.93,136.91,0.04823896]
[1764398327973,6.62840084,136.93,136.91,0.04823896]
[1764398330376,6.62840084,136.93,136.83,9.08834318]
[1764398330377,6.5746,136.89,136.83,1.26136679]
[1764398330677,103.53316679,136.89,136.82,3.25]
[1764398330972,108.857,136.88,136.83,3.25]
[1764398331179,134.017,136.88,136.83,4.51136679]
[1764398331371,0.04872426,136.87,136.84,0.0526473]
[1764398331774,0.04872426,136.87,136.84,4.56401409]
[1764398332670,0.04872426,136.87,136.86,4.51136679]
[1764398336181,6.5726,136.93,136.87,3.25]
[1764398336480,6.5726,136.93,136.89,1.26136679]
[1764398336481,25.18,136.92,136.89,1.26136679]
[1764398337178,0.04735553,136.92,136.89,0.04904448]
[1764398337378,0.04735553,136.92,136.89,1.31041127]
[1764398338773,0.04735553,136.92,136.89,4.56041127]
[1764398340477,0.04735553,136.92,136.91,4.51136679]
[1764398340683,0.04735553,136.92,136.91,1.26136679]
[1764398342183,0.04735553,136.92,136.91,4.51136679]
[1764398344781,0.04735553,136.92,136.91,3.25]
[1764398345285,0.04735553,136.92,136.91,4.51136679]
[1764398346389,0.04735553,136.92,136.91,3.25]
[1764398346684,0.04735553,136.92,136.91,4.51136679]
[1764398348179,0.04735553,136.92,136.91,3.25]
[1764398348389,0.04735553,136.92,136.91,4.51136679]
[1764398353486,0.04735553,136.92,136.91,3.25]
[1764398354192,0.04735553,136.92,136.9,4.43136679]
[1764398354499,0.04735553,136.92,136.91,3.17]
[1764398357994,0.04735553,136.92,136.9,3.17]
[1764398361296,0.04735553,136.92,136.89,3.21904448]
[1764398361499,1.26136679,136.9,136.89,0.04904448]
[1764398361692,7.09953109,136.9,136.86,3.17]
[1764398361893,30.9981643,136.89,136.86,3.17]
[1764398362094,5.8381643,136.88,136.86,3.17]
[1764398362295,5.8381643,136.87,136.86,3.17]
[1764398362495,7.09953109,136.87,136.86,3.17]
[1764398362998,13.67523109,136.87,136.85,3.29053257]
[1764398363189,5.8381643,136.86,136.85,3.29053257]
[1764398363595,7.09953109,136.86,136.85,3.29053257]
[1764398365302,7.09953109,136.86,136.85,0.05053257]
[1764398366801,108.8772,136.85,136.83,3.24]
[1764398367009,5.63423489,136.84,136.83,3.24]
[1764398367307,108.8772,136.85,136.83,3.24]
[1764398367905,108.93341726,136.85,136.83,0.04707676]
[1764398368207,108.93341726,136.85,136.83,3.28707676]
[1764398369511,108.93341726,136.85,136.83,0.04707676]
[1764398369910,6.5783,136.82,136.78,3.24]
[1764398370102,107.95238751,136.82,136.78,3.24]
[1764398370308,102.3252,136.82,136.78,3.24]